[Event "Chinese Chess League Men 2019"]
[Site "Daqing"]
[Date "2019.06.23"]
[Round "5.7"]
[White "Liu, Guanchu"]
[Black "Zou, Chen"]
[Result "1/2-1/2"]
[ECO "B92"]
[WhiteElo "2462"]
[BlackElo "2415"]
[Annotator "ChessBase"]
[PlyCount "113"]
[EventDate "2019.06.19"]
[EventType "team-tourn"]
[EventCountry "CHN"]
[SourceTitle "playchess.com"]
[Source "ChessBase"]
[SourceQuality "1"]
[TimeControl "5400+30"]

1. e4 {[%emt 0:00:00]} c5 {[%emt 0:01:42]} 2. Nf3 {[%emt 0:01:37]} d6 {[%emt 0:00:05]} 3. d4 {[%emt 0:00:13]} cxd4 {[%emt 0:00:05]} 4. Nxd4 {[%emt 0:00:07]} Nf6 {[%emt 0:00:03]} 5. Nc3 {[%emt 0:00:11]} a6 {[%emt 0:00:23]} 6. Be2 {[%emt 0:00:15]} e5 {[%emt 0:00:25]} 7. Nf3 {[%emt 0:00:08]} Be7 {[%emt 0:00:22]} 8. Bg5 {[%emt 0:00:15]} O-O {[%emt 0:00:56]} 9. Bxf6 {[%emt 0:05:42]} Bxf6 {[%emt 0:00:18]} 10. Nd5 {[%emt 0:00:04]} Be7 {[%emt 0:04:49]} 11. Nd2 {[%emt 0:02:30]} Be6 {[%emt 0:06:24]} 12. Nc4 {[%emt 0:00:52]} Bxd5 {[%emt 0:09:53]} 13. Qxd5 {[%emt 0:00:08]} Qc7 {[%emt 0:00:37]} 14. O-O {[%emt 0:09:52]} Nd7 {[%emt 0:03:48]} 15. Rfd1 {[%emt 0:04:38]} Rad8 {[%emt 0:02:47]} 16. Ne3 {[%emt 0:01:48]} Nf6 {[%emt 0:15:26]} 17. Qd3 {[%emt 0:00:35]} Rfe8 {[%emt 0:08:19]} 18. c3 {[%emt 0:05:46]} d5 {[%emt 0:12:33]} 19. Nxd5 {[%emt 0:09:46]} Nxd5 {[%emt 0:04:08]} 20. exd5 {[%emt 0:00:08]} Bd6 {[%emt 0:09:14]} 21. Qc4 {[%emt 0:03:39]} Qe7 {[%emt 0:01:36]} 22. Bf1 {[%emt 0:07:32]} e4 {[%emt 0:02:49]} 23. Re1 {[%emt 0:00:26]} f5 {[%emt 0:00:36]} 24. Rad1 {[%emt 0:00:52]} Qg5 {[%emt 0:07:17]} 25. Qd4 {[%emt 0:15:17]} Be5 {[%emt 0:02:48]} 26. Qa4 {[%emt 0:04:22]} Qh5 {[%emt 0:03:05]} 27. g3 {[%emt 0:01:59]} f4 {[%emt 0:02:04]} 28. Rxe4 {[%emt 0:03:21]} Rf8 {[%emt 0:00:10]} 29. Qc2 {[%emt 0:04:51]} Bb8 {[%emt 0:00:44]} 30. Qe2 {[%emt 0:03:50]} Qg5 {[%emt 0:00:02]} 31. Qd2 {[%emt 0:01:14]} Qh5 {[%emt 0:01:23]} 32. Be2 {[%emt 0:01:09]} Qh3 {[%emt 0:00:26]} 33. Bf1 {[%emt 0:00:49]} Qh5 {[%emt 0:00:05]} 34. Qe2 {[%emt 0:02:19]} Qg5 {[%emt 0:00:02]} 35. Rd3 {[%emt 0:00:50]} fxg3 {[%emt 0:01:11]} 36. hxg3 {[%emt 0:00:04]} Ba7 {[%emt 0:00:42]} 37. Rf3 {[%emt 0:00:07]} Rxf3 {[%emt 0:00:31]} 38. Qxf3 {[%emt 0:00:05]} Rf8 {[%emt 0:00:01]} 39. Rf4 {[%emt 0:00:12]} Rxf4 {[%emt 0:00:07]} 40. Qxf4 {[%emt 0:00:04]} Qxf4 {[%emt 0:00:04]} 41. gxf4 {[%emt 0:00:04]} Bb8 {[%emt 0:01:06]} 42. Kg2 {[%emt 0:00:15]} Bxf4 {[%emt 0:00:22]} 43. Kf3 {[%emt 0:03:50]} Bc1 {[%emt 0:00:46]} 44. c4 {[%emt 0:00:05]} Bxb2 {[%emt 0:00:45]} 45. c5 {[%emt 0:04:00]} Bd4 {[%emt 0:00:14]} 46. c6 {[%emt 0:00:08]} bxc6 {[%emt 0:00:01]} 47. dxc6 {[%emt 0:00:05]} Bb6 {[%emt 0:00:05]} 48. Ke4 {[%emt 0:00:26]} Kf7 {[%emt 0:00:19]} 49. Bxa6 {[%emt 0:00:05]} Ke6 {[%emt 0:00:40]} 50. f3 {[%emt 0:00:33]} Kd6 {[%emt 0:01:11]} 51. Bb5 {[%emt 0:00:07]} Kc5 {[%emt 0:00:37]} 52. a4 {[%emt 0:00:08]} Kd6 {[%emt 0:00:14]} 53. Kf5 {[%emt 0:00:07]} Ba5 {[%emt 0:00:12]} 54. Ke4 {[%emt 0:00:36]} Bb6 {[%emt 0:00:11]} 55. Kf5 {[%emt 0:00:05]} Ba5 {[%emt 0:00:04]} 56. Ke4 {[%emt 0:00:05]} Bb6 {[%emt 0:00:03]} 57. Kf5 {[%emt 0:00:04]} 1/2-1/2

[Event "Chinese Chess League Men 2019"]
[Site "Daqing"]
[Date "2019.06.23"]
[Round "5.10"]
[White "Bao, Qilin"]
[Black "Li, Shilong"]
[Result "1-0"]
[ECO "D77"]
[WhiteElo "2412"]
[BlackElo "2482"]
[Annotator "ChessBase"]
[PlyCount "77"]
[EventDate "2019.06.19"]
[EventType "team-tourn"]
[EventCountry "CHN"]
[SourceTitle "playchess.com"]
[Source "ChessBase"]
[SourceQuality "1"]
[TimeControl "5400+30"]

1. Nf3 {[%emt 0:00:00]} Nf6 {[%emt 0:00:00]} 2. g3 {[%emt 0:00:00]} d5 {[%emt 0:02:26]} 3. Bg2 {[%emt 0:01:05]} g6 {[%emt 0:06:05]} 4. c4 {[%emt 0:06:13]} Bg7 {[%emt 0:03:15]} 5. O-O {[%emt 0:01:25]} O-O {[%emt 0:08:35]} 6. d4 {[%emt 0:09:32]} dxc4 {[%emt 0:00:00]} 7. Na3 {[%emt 0:00:29]} c3 {[%emt 0:00:00]} 8. bxc3 {[%emt 0:00:04]} c5 {[%emt 0:00:00]} 9. e3 {[%emt 0:00:44]} Nc6 {[%emt 0:00:00]} 10. Qe2 {[%emt 0:02:03]} Bf5 {[%emt 0:07:49]} 11. Bb2 {[%emt 0:03:19]} Qb6 {[%emt 0:54:39]} 12. Rfe1 {[%emt 0:03:36]} Be4 {[%emt 0:03:11]} 13. Nc4 {[%emt 0:10:24]} Qa6 {[%emt 0:00:00]} 14. Bf1 {[%emt 0:00:39]} Rfd8 {[%emt 0:09:18]} 15. Nfd2 {[%emt 0:07:20]} Bd5 {[%emt 0:00:38]} 16. a4 {[%emt 0:00:30]} cxd4 {[%emt 0:01:11]} 17. cxd4 {[%emt 0:02:12]} b6 {[%emt 0:00:38]} 18. Red1 {[%emt 0:07:02]} Ne4 {[%emt 0:00:26]} 19. Nxe4 {[%emt 0:20:24]} Bxe4 {[%emt 0:00:02]} 20. a5 {[%emt 0:01:26]} bxa5 {[%emt 0:00:46]} 21. Nxa5 {[%emt 0:02:46]} Qb6 {[%emt 0:00:31]} 22. Nc4 {[%emt 0:02:05]} Qb7 {[%emt 0:00:16]} 23. Ba3 {[%emt 0:04:45]} Rdc8 {[%emt 0:01:11]} 24. Bc5 {[%emt 0:01:30]} Nd8 {[%emt 0:00:02]} 25. Nd2 {[%emt 0:00:37]} Bc6 {[%emt 0:00:54]} 26. Rab1 {[%emt 0:01:48]} Qd7 {[%emt 0:00:01]} 27. Bg2 {[%emt 0:01:39]} Bxg2 28. Kxg2 {[%emt 0:00:02]} Ne6 {[%emt 0:00:38]} 29. Ba3 {[%emt 0:03:46]} a5 {[%emt 0:00:10]} 30. Ne4 {[%emt 0:00:47]} Qd5 {[%emt 0:01:41]} 31. Qf3 {[%emt 0:00:06]} Kf8 {[%emt 0:00:22]} 32. Rb6 {[%emt 0:02:06]} Rab8 {[%emt 0:00:37]} 33. Rdb1 {[%emt 0:00:34]} Rxb6 {[%emt 0:00:13]} 34. Rxb6 {[%emt 0:00:02]} a4 {[%emt 0:00:39]} 35. h4 {[%emt 0:00:45]} h6 {[%emt 0:00:42]} 36. Ra6 {[%emt 0:00:41]} Qb3 {[%emt 0:00:21]} 37. Nc5 {[%emt 0:00:40]} Qxa3 {[%emt 0:00:37]} 38. Ra8 {[%emt 0:00:39]} Re8 {[%emt 0:00:32]} 39. Nxe6+ {[%emt 0:00:13]} 1-0

[Event "Chinese Chess League Men 2019"]
[Site "Daqing"]
[Date "2019.06.23"]
[Round "5.11"]
[White "Zhao, Chenxi"]
[Black "Qu, Yanqiao"]
[Result "1-0"]
[ECO "C60"]
[WhiteElo "2383"]
[BlackElo "2140"]
[Annotator "NA"]
[PlyCount "73"]
[EventDate "2019.06.19"]
[EventType "team-tourn"]
[EventCountry "CHN"]
[SourceTitle "playchess.com"]
[Source "ChessBase"]
[SourceQuality "1"]
[TimeControl "5400+30"]

1. e4 {[%emt 0:00:00]} e5 {[%emt 0:00:15]} 2. Nf3 {[%emt 0:00:00]} Nc6 {[%emt 0:00:36]} 3. Bb5 {[%emt 0:00:00]} Nge7 {[%emt 0:00:09]} 4. c4 {[%emt 0:01:52]} g6 {[%emt 0:04:28]} 5. Nc3 {[%emt 0:01:24]} Bg7 {[%emt 0:00:20]} 6. d3 {[%emt 0:00:06]} O-O {[%emt 0:00:31]} 7. h3 {[%emt 0:02:55]} d6 {[%emt 0:03:56]} 8. g4 {[%emt 0:05:07]} Nd4 {[%emt 0:03:30]} 9. Nxd4 {[%emt 0:01:27]} exd4 {[%emt 0:00:18]} 10. Ne2 {[%emt 0:00:06]} c6 {[%emt 0:01:07]} 11. Ba4 {[%emt 0:00:06]} d5 {[%emt 0:07:58]} 12. cxd5 {[%emt 0:04:08]} cxd5 {[%emt 0:00:37]} 13. Nf4 {[%emt 0:00:16]} b5 {[%emt 0:03:46]} 14. Bb3 {[%emt 0:01:07]} Bb7 {[%emt 0:00:22]} 15. f3 {[%emt 0:01:04]} Qd6 {[%emt 0:12:04]} 16. O-O {[%emt 0:03:23]} Kh8 {[%emt 0:14:37]} 17. Bd2 {[%emt 0:05:42]} Be5 {[%emt 0:07:53]} 18. Nxd5 {[%emt 0:00:20]} Nxd5 {[%emt 0:01:24]} 19. Bxd5 {[%emt 0:00:08]} Bxd5 {[%emt 0:00:21]} 20. exd5 {[%emt 0:00:06]} Qxd5 {[%emt 0:12:37]} 21. Qb3 {[%emt 0:00:09]} Qd7 {[%emt 0:02:39]} 22. Rac1 {[%emt 0:03:54]} Rac8 {[%emt 0:00:28]} 23. Kg2 {[%emt 0:01:40]} a6 {[%emt 0:02:21]} 24. Rfe1 {[%emt 0:02:09]} Rxc1 {[%emt 0:04:24]} 25. Rxc1 {[%emt 0:01:48]} Re8 {[%emt 0:01:20]} 26. Re1 {[%emt 0:01:03]} Bc7 {[%emt 0:01:44]} 27. Qb4 {[%emt 0:01:00]} Kg8 {[%emt 0:04:20]} 28. Qxd4 {[%emt 0:01:06]} Rd8 {[%emt 0:04:05]} 29. Qxd7 {[%emt 0:00:04]} Rxd7 {[%emt 0:00:01]} 30. Re8+ {[%emt 0:00:10]} Kg7 {[%emt 0:00:02]} 31. Bc3+ {[%emt 0:00:43]} Kh6 {[%emt 0:01:54]} 32. h4 {[%emt 0:00:10]} g5 {[%emt 0:01:25]} 33. h5 {[%emt 0:00:30]} Bd8 {[%emt 0:01:15]} 34. Bh8 {[%emt 0:04:05]} Bb6 {[%emt 0:02:31]} 35. Ra8 {[%emt 0:01:38]} Rxd3 {[%emt 0:00:57]} 36. Rxa6 {[%emt 0:00:36]} Rd6 {[%emt 0:00:00]} 37. Bd4 {[%emt 0:00:25]} 1-0

[Event "Chinese Chess League Men 2019"]
[Site "Daqing"]
[Date "2019.06.23"]
[Round "5.12"]
[White "Hou, Yifan b"]
[Black "Lin, Peisen"]
[Result "1/2-1/2"]
[ECO "D76"]
[WhiteElo "1932"]
[BlackElo "1988"]
[Annotator "NA"]
[PlyCount "61"]
[EventDate "2019.06.19"]
[EventType "team-tourn"]
[EventCountry "CHN"]
[SourceTitle "playchess.com"]
[Source "ChessBase"]
[SourceQuality "1"]
[TimeControl "5400+30"]

1. d4 {[%emt 0:00:00]} Nf6 {[%emt 0:00:00]} 2. Nf3 {[%emt 0:00:00]} g6 {[%emt 0:00:00]} 3. c4 {[%emt 0:00:06]} Bg7 {[%emt 0:00:00]} 4. g3 {[%emt 0:00:48]} d5 {[%emt 0:00:00]} 5. Bg2 {[%emt 0:00:14]} dxc4 {[%emt 0:00:02]} 6. Qa4+ {[%emt 0:01:25]} Nfd7 {[%emt 0:00:43]} 7. Qxc4 {[%emt 0:02:08]} Nb6 {[%emt 0:00:48]} 8. Qc2 {[%emt 0:01:47]} Nc6 {[%emt 0:00:48]} 9. O-O {[%emt 0:07:16]} O-O {[%emt 0:13:28]} 10. e3 {[%emt 0:00:00]} Bf5 {[%emt 0:01:01]} 11. e4 Bg4 {[%emt 0:02:08]} 12. d5 {[%emt 0:00:20]} Bxf3 {[%emt 0:00:30]} 13. Bxf3 {[%emt 0:00:30]} Nd4 {[%emt 0:01:01]} 14. Qd3 {[%emt 0:00:42]} Nxf3+ {[%emt 0:03:02]} 15. Qxf3 {[%emt 0:00:06]} f5 {[%emt 0:06:14]} 16. Nc3 {[%emt 0:04:21]} fxe4 {[%emt 0:19:56]} 17. Qxe4 {[%emt 0:00:18]} Bxc3 {[%emt 0:00:56]} 18. bxc3 {[%emt 0:00:01]} Qxd5 {[%emt 0:00:14]} 19. Qxe7 {[%emt 0:01:33]} Rae8 {[%emt 0:01:00]} 20. Qg5 {[%emt 0:04:24]} Rf5 {[%emt 0:07:23]} 21. Qg4 {[%emt 0:07:26]} Qf3 {[%emt 0:06:53]} 22. Qb4 {[%emt 0:09:44]} c5 {[%emt 0:14:14]} 23. Qb3+ {[%emt 0:04:29]} c4 {[%emt 0:00:54]} 24. Qb4 {[%emt 0:00:32]} h5 {[%emt 0:06:09]} 25. Qd6 {[%emt 0:02:26]} Rf6 {[%emt 0:01:14]} 26. Qd4 {[%emt 0:01:20]} Re4 {[%emt 0:01:26]} 27. Qd8+ {[%emt 0:00:07]} Rf8 {[%emt 0:01:05]} 28. Qd6 {[%emt 0:03:57]} Rf6 {[%emt 0:04:21]} 29. Qd8+ {[%emt 0:04:10]} Rf8 {[%emt 0:01:55]} 30. Qd6 {[%emt 0:00:15]} Rg4 {[%emt 0:01:55]} 31. h3 1/2-1/2

[Event "Chinese Chess League Men 2019"]
[Site "Daqing"]
[Date "2019.06.24"]
[Round "6.1"]
[White "Ma, Qun"]
[Black "Dai, Changren"]
[Result "1/2-1/2"]
[ECO "D37"]
[WhiteElo "2626"]
[BlackElo "2480"]
[Annotator "RC"]
[PlyCount "92"]
[EventDate "2019.06.19"]
[EventType "team-tourn"]
[EventCountry "CHN"]
[SourceTitle "playchess.com"]
[Source "ChessBase"]
[SourceQuality "1"]
[TimeControl "5400+30"]

1. d4 {[%emt 0:00:00]} d5 {[%emt 0:00:00]} 2. c4 {[%emt 0:00:03]} e6 {[%emt 0:00:00]} 3. Nc3 {[%emt 0:00:10]} Be7 {[%emt 0:00:00]} 4. Nf3 {[%emt 0:00:31]} Nf6 {[%emt 0:00:00]} 5. Bf4 {[%emt 0:00:50]} O-O {[%emt 0:00:03]} 6. e3 {[%emt 0:00:12]} Nbd7 {[%emt 0:00:05]} 7. Be2 {[%emt 0:00:21]} dxc4 {[%emt 0:01:48]} 8. O-O {[%emt 0:00:30]} c5 {[%emt 0:00:21]} 9. dxc5 {[%emt 0:00:18]} Bxc5 {[%emt 0:02:04]} 10. Bxc4 {[%emt 0:05:11]} a6 {[%emt 0:04:11]} 11. a4 {[%emt 0:01:56]} b6 {[%emt 0:01:10]} 12. Qe2 {[%emt 0:00:28]} Bb7 {[%emt 0:04:16]} 13. Rad1 {[%emt 0:01:34]} Bb4 {[%emt 0:08:41]} 14. Ne5 {[%emt 0:18:46]} Bxc3 {[%emt 0:07:10]} 15. bxc3 {[%emt 0:03:43]} Qc8 {[%emt 0:04:46]} 16. Nxd7 {[%emt 0:03:48]} Nxd7 {[%emt 0:00:03]} 17. Rd6 {[%emt 0:00:44]} Nc5 {[%emt 0:01:04]} 18. Be5 {[%emt 0:03:05]} Kh8 {[%emt 0:16:46]} 19. Rfd1 {[%emt 0:10:05]} f6 {[%emt 0:04:05]} 20. Bd4 {[%emt 0:01:03]} e5 {[%emt 0:00:25]} 21. Bxc5 {[%emt 0:02:29]} Qxc5 {[%emt 0:00:13]} 22. Rd7 {[%emt 0:03:01]} Bc6 {[%emt 0:05:51]} 23. Qg4 {[%emt 0:05:28]} Bxd7 {[%emt 0:00:17]} 24. Rxd7 {[%emt 0:00:02]} Rg8 {[%emt 0:02:12]} 25. Bxg8 {[%emt 0:01:18]} Rxg8 {[%emt 0:00:03]} 26. Qb4 {[%emt 0:00:36]} h6 {[%emt 0:04:26]} 27. Qxc5 {[%emt 0:03:56]} bxc5 {[%emt 0:00:01]} 28. Kf1 {[%emt 0:00:58]} Rb8 {[%emt 0:00:47]} 29. Ra7 {[%emt 0:04:52]} Rb3 {[%emt 0:01:09]} 30. c4 {[%emt 0:02:05]} Rb4 {[%emt 0:00:25]} 31. Rxa6 {[%emt 0:00:05]} Rxc4 {[%emt 0:00:05]} 32. a5 {[%emt 0:00:05]} Rc2 {[%emt 0:02:58]} 33. Ra8+ {[%emt 0:02:04]} Kh7 {[%emt 0:00:02]} 34. a6 {[%emt 0:00:08]} Ra2 {[%emt 0:00:11]} 35. a7 {[%emt 0:00:48]} h5 {[%emt 0:00:19]} 36. h4 {[%emt 0:01:52]} c4 {[%emt 0:00:06]} 37. Ke1 {[%emt 0:00:03]} c3 {[%emt 0:00:06]} 38. Kd1 {[%emt 0:00:04]} e4 {[%emt 0:08:49]} 39. Kc1 {[%emt 0:02:39]} Kg6 {[%emt 0:00:21]} 40. Kb1 {[%emt 0:01:33]} Rb2+ {[%emt 0:00:10]} 41. Kc1 {[%emt 0:00:06]} Ra2 {[%emt 0:00:12]} 42. f3 {[%emt 0:01:57]} Kf5 {[%emt 0:01:04]} 43. Kb1 {[%emt 0:03:53]} Rb2+ {[%emt 0:00:01]} 44. Kc1 {[%emt 0:00:15]} Ra2 {[%emt 0:00:02]} 45. Kb1 {[%emt 0:02:06]} Rb2+ {[%emt 0:00:02]} 46. Kc1 {[%emt 0:00:07]} Ra2 {[%emt 0:00:04]} 1/2-1/2

[Event "Chinese Chess League Men 2019"]
[Site "Daqing"]
[Date "2019.06.24"]
[Round "6.2"]
[White "Li, Yankai"]
[Black "Xiang, Zeyu"]
[Result "1/2-1/2"]
[ECO "E01"]
[WhiteElo "2432"]
[BlackElo "2432"]
[Annotator "NA"]
[PlyCount "60"]
[EventDate "2019.06.19"]
[EventType "team-tourn"]
[EventCountry "CHN"]
[SourceTitle "playchess.com"]
[Source "ChessBase"]
[SourceQuality "1"]
[TimeControl "5400+30"]

1. d4 {[%emt 0:00:00]} d5 {[%emt 0:00:00]} 2. c4 {[%emt 0:00:00]} e6 {[%emt 0:00:00]} 3. Nf3 {[%emt 0:00:46]} Nf6 {[%emt 0:00:00]} 4. g3 {[%emt 0:00:04]} Bb4+ {[%emt 0:00:00]} 5. Nbd2 {[%emt 0:00:03]} dxc4 {[%emt 0:01:32]} 6. a3 {[%emt 0:04:19]} Bxd2+ {[%emt 0:08:32]} 7. Bxd2 {[%emt 0:00:05]} b5 {[%emt 0:04:04]} 8. a4 {[%emt 0:03:46]} Bb7 {[%emt 0:05:25]} 9. axb5 {[%emt 0:04:23]} O-O {[%emt 0:00:17]} 10. Bg2 {[%emt 0:06:34]} a6 {[%emt 0:01:58]} 11. bxa6 {[%emt 0:01:41]} Nxa6 {[%emt 0:00:12]} 12. O-O {[%emt 0:01:55]} c5 {[%emt 0:02:46]} 13. dxc5 {[%emt 0:03:22]} Nxc5 {[%emt 0:00:30]} 14. Bb4 {[%emt 0:21:10]} Qb6 {[%emt 0:01:09]} 15. Rxa8 {[%emt 0:02:44]} Rxa8 {[%emt 0:00:09]} 16. Ba3 {[%emt 0:00:07]} Nce4 {[%emt 0:05:46]} 17. Qc1 {[%emt 0:09:18]} Bd5 {[%emt 0:04:23]} 18. Ne1 {[%emt 0:06:40]} h6 {[%emt 0:19:27]} 19. Nc2 {[%emt 0:01:55]} c3 {[%emt 0:05:25]} 20. bxc3 {[%emt 0:04:31]} Nxc3 {[%emt 0:00:25]} 21. Qd2 {[%emt 0:00:59]} Nce4 {[%emt 0:02:56]} 22. Qd3 {[%emt 0:04:42]} Qb3 {[%emt 0:02:19]} 23. Be7 {[%emt 0:01:29]} Qxd3 {[%emt 0:02:21]} 24. exd3 {[%emt 0:00:05]} Nc3 {[%emt 0:01:31]} 25. Bxf6 {[%emt 0:00:22]} gxf6 {[%emt 0:00:21]} 26. Bxd5 {[%emt 0:00:44]} Nxd5 {[%emt 0:00:14]} 27. Rb1 {[%emt 0:00:49]} Kg7 {[%emt 0:01:54]} 28. Rb2 {[%emt 0:01:42]} Rd8 {[%emt 0:01:01]} 29. Kf1 {[%emt 0:00:48]} Nc3 {[%emt 0:00:30]} 30. Rb3 {[%emt 0:00:31]} Nd5 {[%emt 0:00:49]} 1/2-1/2

[Event "Chinese Chess League Men 2019"]
[Site "Daqing"]
[Date "2019.06.24"]
[Round "6.3"]
[White "Zou, Chen"]
[Black "Chu, Wei Chao"]
[Result "0-1"]
[ECO "D42"]
[WhiteElo "2415"]
[BlackElo "2374"]
[Annotator "NA RC"]
[PlyCount "125"]
[EventDate "2019.06.19"]
[EventType "team-tourn"]
[EventCountry "CHN"]
[SourceTitle "playchess.com"]
[Source "ChessBase"]
[SourceQuality "1"]
[TimeControl "5400+30"]

1. e4 {[%emt 0:00:00]} c6 {[%emt 0:00:00]} 2. c4 {[%emt 0:12:31]} d5 {[%emt 0:00:44]} 3. exd5 {[%emt 0:00:07]} cxd5 {[%emt 0:00:05]} 4. d4 {[%emt 0:00:26]} e6 {[%emt 0:00:12]} 5. Nf3 {[%emt 0:01:35]} Nf6 {[%emt 0:00:09]} 6. Nc3 {[%emt 0:00:33]} Nc6 {[%emt 0:00:42]} 7. cxd5 {[%emt 0:02:07]} Nxd5 {[%emt 0:02:37]} 8. Bd3 {[%emt 0:00:08]} Be7 {[%emt 0:01:04]} 9. O-O {[%emt 0:00:13]} O-O {[%emt 0:00:28]} 10. Bc2 {[%emt 0:08:43]} b6 {[%emt 0:06:26]} 11. Qd3 {[%emt 0:09:02]} g6 {[%emt 0:00:31]} 12. a3 {[%emt 0:01:42]} Bb7 {[%emt 0:09:52]} 13. Bh6 {[%emt 0:04:59]} Re8 {[%emt 0:01:00]} 14. Rfe1 {[%emt 0:01:35]} Rc8 {[%emt 0:05:12]} 15. Bd2 {[%emt 0:19:15]} Ncb4 {[%emt 0:08:19]} 16. Qe4 {[%emt 0:12:01]} Nxc3 {[%emt 0:07:23]} 17. Qxb7 {[%emt 0:00:02]} Nxc2 {[%emt 0:00:48]} 18. Bxc3 {[%emt 0:00:38]} Nxa1 {[%emt 0:00:42]} 19. Rxa1 {[%emt 0:00:02]} Qd5 {[%emt 0:02:16]} 20. Qa6 {[%emt 0:00:05]} b5 {[%emt 0:07:48]} 21. Ne5 {[%emt 0:01:08]} f6 {[%emt 0:05:06]} 22. Ng4 {[%emt 0:03:16]} Qc6 {[%emt 0:04:47]} 23. Qa5 {[%emt 0:00:35]} Qb6 {[%emt 0:05:36]} 24. Qxb6 {[%emt 0:01:15]} axb6 {[%emt 0:00:11]} 25. Ne3 {[%emt 0:00:11]} Kf7 {[%emt 0:00:52]} 26. Kf1 {[%emt 0:01:08]} Rc7 {[%emt 0:02:22]} 27. Ke2 {[%emt 0:01:40]} Ra8 {[%emt 0:00:16]} 28. Nc2 {[%emt 0:00:06]} Rc4 {[%emt 0:02:35]} 29. Rd1 {[%emt 0:00:47]} Rd8 {[%emt 0:00:35]} 30. Rd3 {[%emt 0:00:41]} Ra4 {[%emt 0:01:49]} 31. Re3 {[%emt 0:03:04]} Rd5 {[%emt 0:00:53]} 32. Kf3 {[%emt 0:03:06]} h5 {[%emt 0:01:37]} 33. g3 {[%emt 0:02:13]} g5 {[%emt 0:00:14]} 34. Ke2 {[%emt 0:00:30]} g4 {[%emt 0:00:35]} 35. Rd3 {[%emt 0:00:24]} Rd8 {[%emt 0:00:30]} 36. Re3 {[%emt 0:02:25]} Rd7 {[%emt 0:00:59]} 37. Ke1 {[%emt 0:01:29]} Ra8 {[%emt 0:00:28]} 38. Ke2 {[%emt 0:00:15]} Rad8 {[%emt 0:02:25]} 39. Ne1 {[%emt 0:00:51]} Rc8 {[%emt 0:01:07]} 40. Nd3 {[%emt 0:02:09]} Bxa3 {[%emt 0:06:31]} 41. bxa3 {[%emt 0:00:04]} Rxc3 {[%emt 0:00:06]} 42. Ne5+ {[%emt 0:00:01]} fxe5 {[%emt 0:00:09]} 43. Rxc3 {[%emt 0:00:03]} exd4 {[%emt 0:00:08]} 44. Rc6 {[%emt 0:00:12]} d3+ {[%emt 0:02:44]} 45. Kd2 {[%emt 0:00:18]} Kf6 {[%emt 0:00:07]} 46. Rxb6 {[%emt 0:05:56]} Rd5 {[%emt 0:00:01]} 47. Rb8 {[%emt 0:00:41]} Ke5 {[%emt 0:00:09]} 48. Rf8 {[%emt 0:01:10]} Kd4 {[%emt 0:01:57]} 49. Rf4+ {[%emt 0:00:49]} Kc5 {[%emt 0:00:28]} 50. Re4 {[%emt 0:01:40]} e5 {[%emt 0:00:50]} 51. Kc1 {[%emt 0:00:49]} d2+ {[%emt 0:07:25]} 52. Kd1 {[%emt 0:00:01]} Kd6 {[%emt 0:00:05]} 53. Re2 {[%emt 0:01:07]} Rd4 {[%emt 0:00:52]} 54. Rxd2 {[%emt 0:00:12]} Kd5 {[%emt 0:00:33]} 55. Ke2 {[%emt 0:00:56]} Rxd2+ {[%emt 0:00:46]} 56. Kxd2 {[%emt 0:00:02]} Kc4 {[%emt 0:02:12]} 57. Ke3 {[%emt 0:01:01]} e4 {[%emt 0:02:02]} 58. Kxe4 {[%emt 0:00:24]} Kb3 {[%emt 0:00:01]} 59. f4 {[%emt 0:00:35]} gxf3 {[%emt 0:00:02]} 60. Kxf3 {[%emt 0:00:29]} Kxa3 {[%emt 0:00:01]} 61. h4 {[%emt 0:00:31]} b4 {[%emt 0:00:05]} 62. g4 {[%emt 0:00:22]} hxg4+ {[%emt 0:00:01]} 63. Kxg4 {[%emt 0:00:11]} 0-1

[Event "Chinese Chess League Men 2019"]
[Site "Daqing"]
[Date "2019.06.24"]
[Round "6.8"]
[White "Huang, Renjie"]
[Black "Zhao, Yuanhe"]
[Result "1/2-1/2"]
[ECO "C01"]
[WhiteElo "2327"]
[BlackElo "2444"]
[Annotator "NA RC"]
[PlyCount "59"]
[EventDate "2019.06.19"]
[EventType "team-tourn"]
[EventCountry "CHN"]
[SourceTitle "playchess.com"]
[Source "ChessBase"]
[SourceQuality "1"]
[TimeControl "5400+30"]

1. e4 {[%emt 0:00:00]} e5 {[%emt 0:00:00]} 2. Nf3 {[%emt 0:00:00]} Nf6 {[%emt 0:00:00]} 3. Nxe5 {[%emt 0:00:00]} d6 {[%emt 0:00:00]} 4. Nf3 {[%emt 0:00:00]} Nxe4 {[%emt 0:00:00]} 5. d3 {[%emt 0:00:04]} Nf6 {[%emt 0:00:00]} 6. d4 {[%emt 0:00:09]} d5 7. Bd3 {[%emt 0:00:01]} Bd6 {[%emt 0:00:00]} 8. Qe2+ {[%emt 0:00:07]} Be6 {[%emt 0:00:00]} 9. c4 {[%emt 0:00:35]} O-O {[%emt 0:00:03]} 10. c5 {[%emt 0:00:45]} Be7 {[%emt 0:00:05]} 11. O-O {[%emt 0:03:00]} b6 {[%emt 0:00:05]} 12. Ng5 {[%emt 0:08:06]} Bg4 {[%emt 0:01:38]} 13. Qc2 {[%emt 0:03:58]} h6 {[%emt 0:16:31]} 14. Nh7 {[%emt 0:00:11]} Nxh7 {[%emt 0:00:13]} 15. Bxh7+ {[%emt 0:00:36]} Kh8 {[%emt 0:00:04]} 16. cxb6 {[%emt 0:00:41]} axb6 {[%emt 0:00:57]} 17. Bf5 {[%emt 0:00:46]} Bxf5 {[%emt 0:02:40]} 18. Qxf5 $15 {[%emt 0:00:08]} Nc6 {[%emt 0:00:24]} 19. Be3 {[%emt 0:00:57]} Bf6 {[%emt 0:14:05]} 20. Rd1 {[%emt 0:01:10]} Na5 {[%emt 0:03:48]} 21. Nc3 {[%emt 0:02:05]} Nc4 {[%emt 0:02:08]} 22. Qxd5 {[%emt 0:04:27]} Nxb2 {[%emt 0:07:49]} 23. Rd2 {[%emt 0:00:10]} Na4 {[%emt 0:08:03]} 24. Qxd8 {[%emt 0:00:08]} Rfxd8 {[%emt 0:00:54]} 25. Nxa4 {[%emt 0:01:28]} Rxa4 {[%emt 0:00:02]} 26. Rc1 {[%emt 0:00:19]} Rd7 {[%emt 0:01:12]} 27. g3 {[%emt 0:00:29]} Be7 {[%emt 0:03:06]} 28. Bf4 {[%emt 0:01:55]} Bg5 {[%emt 0:04:50]} 29. Bxg5 {[%emt 0:00:41]} hxg5 {[%emt 0:00:01]} 30. Rc6 {[%emt 0:00:36]} 1/2-1/2